fUSD/lending_fUSD_20240813
["ID","MTS","AMOUNT","RATE_DAILY","PERIOD"]
[334749118,1723535456210,-500.0,0.00014002,2]
[334749119,1723535456219,-500.0,0.00014002,2]
[334749120,1723535456228,-336.27790207,0.00014002,2]
[334749121,1723535456239,-500.0,0.00014002,2]
[334749122,1723535456248,-214.34301461,0.00014002,2]
[334749123,1723535456258,-500.0,0.00014002,2]
[334749124,1723535456267,-500.0,0.00014002,2]
[334749125,1723535456276,-618.25642634,0.00014002,2]
[334749126,1723535456285,-509.07330902,0.00014002,2]
[334749127,1723535456294,-510.71846423,0.00014002,2]
[334749128,1723535456303,-513.05421551,0.00014002,2]
[334749129,1723535456313,-500.0,0.00014002,2]
[334749130,1723535456323,-510.07201923,0.00014002,2]
[334749131,1723535456332,-500.0,0.00014002,2]
[334749132,1723535456342,-512.68502517,0.00014002,2]
[334749133,1723535456351,-500.0,0.00014002,2]
[334749134,1723535456360,-505.84722973,0.00014002,2]
[334749135,1723535456370,-512.48828307,0.00014002,2]
[334749136,1723535456379,-500.0,0.00014002,2]
[334749137,1723535456389,-500.0,0.00014002,2]
[334749138,1723535456398,-500.0,0.00014002,2]
[334749139,1723535456408,-615.21567146,0.00014002,2]
[334749140,1723535456417,-500.0,0.00014002,2]
[334749141,1723535456427,-500.0,0.00014002,2]
[334749142,1723535456436,-500.0,0.00014002,2]
[334749143,1723535456445,-500.0,0.00014002,2]
[334749144,1723535456455,-500.0,0.00014002,2]
[334749145,1723535456464,-500.0,0.00014002,2]
[334749146,1723535456473,-500.0,0.00014002,2]
[334749147,1723535456483,-6591.73,0.00014002,2]
[334749148,1723535456494,-500.0,0.00014002,2]
[334749149,1723535456504,-500.0,0.00014002,2]
[334749150,1723535456513,-500.0,0.00014002,2]
[334749151,1723535456522,-500.0,0.00014002,2]
[334749152,1723535456532,-504.62379305,0.00014002,2]
[334749153,1723535456544,-1037.55,0.00014002,2]
[334749154,1723535456553,-500.0,0.00014002,2]
[334749155,1723535456563,-500.0,0.00014002,2]
[334749156,1723535456572,-500.0,0.00014002,2]
[334749157,1723535456582,-500.0,0.00014002,2]
[334749158,1723535456591,-500.0,0.00014002,2]
[334749159,1723535456600,-500.0,0.00014002,2]
[334749160,1723535456612,-500.0,0.00014002,2]
[334749161,1723535456621,-500.0,0.00014002,2]
[334749162,1723535456630,-500.0,0.00014002,2]
[334749163,1723535456639,-500.0,0.00014002,2]
[334749164,1723535456648,-388.41747121,0.00014002,2]
[334749165,1723535456657,-981.15,0.00014002,2]
[334749166,1723535456666,-500.0,0.00014002,2]
[334749167,1723535456675,-500.0,0.00014002,2]
[334749168,1723535456685,-500.0,0.00014002,2]
[334749169,1723535456694,-500.0,0.00014002,2]
[334749170,1723535456703,-500.0,0.00014002,2]
[334749171,1723535456712,-500.0,0.00014002,2]
[334749172,1723535456721,-500.0,0.00014002,2]
[334749173,1723535456731,-553.64,0.00014002,2]
[334749174,1723535456743,-505.73,0.00014002,2]
[334749175,1723535456752,-888.8,0.00014002,2]
[334749176,1723535456762,-500.0,0.00014002,2]
[334749177,1723535456771,-500.0,0.00014002,2]
[334749178,1723535456780,-545.36238632,0.00014002,2]
[334749179,1723535456789,-500.0,0.00014002,2]
[334749180,1723535456799,-4003.23,0.00014002,2]
[334749181,1723535456808,-500.0,0.00014002,2]
[334749182,1723535456817,-500.0,0.00014002,2]
[334749183,1723535456827,-500.0,0.00014002,2]
[334749184,1723535456836,-500.0,0.00014002,2]
[334749185,1723535456845,-500.0,0.00014002,2]
[334749186,1723535456854,-535.05600512,0.00014002,2]
[334749187,1723535456863,-773.78,0.00014002,2]
[334749188,1723535456873,-500.0,0.00014002,2]
[334749189,1723535456882,-560.08,0.00014002,2]
[334749190,1723535456891,-500.0,0.00014002,2]
[334749191,1723535456902,-500.0,0.00014002,2]
[334749192,1723535456912,-500.0,0.00014002,2]
[334749193,1723535456921,-516.51660624,0.00014002,2]
[334749194,1723535456930,-512.75420204,0.00014002,2]
[334749195,1723535456941,-1646.38,0.00014002,2]
[334749196,1723535456950,-500.0,0.00014002,2]
[334749197,1723535456961,-500.0,0.00014002,2]
[334749198,1723535456970,-1106.51,0.00014002,2]
[334749199,1723535456981,-1145.83,0.00014002,2]
[334749200,1723535456991,-500.0,0.00014002,2]
[334749201,1723535457000,-500.0,0.00014002,2]
[334749202,1723535457010,-500.0,0.00014002,2]
[334749203,1723535457018,-500.0,0.00014002,2]
[334749204,1723535457027,-1271.02,0.00014002,2]
[334749205,1723535457038,-500.0,0.00014002,2]
[334749206,1723535457048,-513.62944316,0.00014002,2]
[334749207,1723535457059,-500.0,0.00014002,2]
[334749208,1723535457070,-500.0,0.00014002,2]
[334749209,1723535457079,-500.0,0.00014002,2]
[334749210,1723535457087,-1189.17,0.00014002,2]
[334749211,1723535457097,-756.19,0.00014002,2]
[334749212,1723535457107,-500.0,0.00014002,2]
[334749213,1723535457116,-637.04814183,0.00014002,2]
[334749214,1723535457125,-511.11184908,0.00014002,2]
[334749215,1723535457136,-633.87,0.00014002,2]
[334749216,1723535457145,-500.0,0.00014002,2]
[334749217,1723535457155,-500.0,0.00014002,2]
[334749218,1723535457164,-500.0,0.00014002,2]
[334749219,1723535457175,-500.0,0.00014002,2]
[334749220,1723535457185,-500.0,0.00014002,2]
[334749221,1723535457196,-500.0,0.00014002,2]
[334749222,1723535457205,-507.8,0.00014002,2]
[334749223,1723535457214,-500.0,0.00014002,2]
[334749224,1723535457224,-500.0,0.00014002,2]
[334749225,1723535457233,-500.0,0.00014002,2]
[334749226,1723535457246,-555.42,0.00014002,2]
[334749227,1723535457256,-522.91618912,0.00014002,2]
[334749228,1723535457265,-500.0,0.00014002,2]
[334749229,1723535457274,-869.38,0.00014002,2]
[334749230,1723535457283,-500.0,0.00014002,2]
[334749231,1723535457292,-500.0,0.00014002,2]
[334749232,1723535457302,-500.0,0.00014002,2]
[334749233,1723535457312,-500.0,0.00014002,2]
[334749234,1723535457321,-500.0,0.00014003,2]
[334749235,1723535457331,-500.0,0.00014003,2]
[334749236,1723535457340,-500.0,0.00014003,2]
[334749237,1723535457349,-653.45,0.00014003,2]
[334749238,1723535457358,-500.0,0.00014003,2]
[334749239,1723535457367,-500.0,0.00014003,2]
[334749240,1723535457378,-500.0,0.00014003,2]
[334749241,1723535457388,-507.60991895,0.00014003,2]
[334749242,1723535457398,-663.86,0.00014003,2]
[334749243,1723535457408,-500.0,0.00014003,2]
[334749244,1723535457419,-500.0,0.00014003,2]
[334749245,1723535457431,-500.0,0.00014003,2]
[334749246,1723535457441,-500.0,0.00014003,2]
[334749247,1723535457451,-500.0,0.00014003,2]
[334749248,1723535457463,-500.0,0.00014003,2]
[334749249,1723535457472,-500.0,0.00014003,2]
[334749250,1723535457482,-784.51,0.00014003,2]
[334749251,1723535457493,-500.0,0.00014003,2]
[334749252,1723535457503,-500.0,0.00014003,2]
[334749253,1723535457512,-500.0,0.00014003,2]
[334749254,1723535457521,-500.0,0.00014003,2]
[334749255,1723535457530,-500.0,0.00014003,2]
[334749256,1723535457544,-500.0,0.00014003,2]
[334749257,1723535457554,-500.0,0.00014003,2]
[334749258,1723535457564,-500.0,0.00014003,2]
[334749259,1723535457575,-500.0,0.00014003,2]
[334749260,1723535457586,-500.0,0.00014003,2]
[334749261,1723535457596,-500.0,0.00014003,2]
[334749262,1723535457607,-500.0,0.00014003,2]
[334749263,1723535457620,-228.84265415,0.00014003,2]
[334749264,1723535457631,-500.0,0.00014003,2]
[334749265,1723535457641,-500.0,0.00014003,2]
[334749266,1723535457650,-511.52780102,0.00014003,2]
[334749267,1723535457659,-500.0,0.00014003,2]
[334749268,1723535457671,-500.0,0.00014003,2]
[334749269,1723535457680,-264.60072241,0.00014003,2]
[334749270,1723535457690,-500.0,0.00014003,2]
[334749271,1723535457700,-500.0,0.00014003,2]
[334749272,1723535457709,-500.0,0.00014003,2]
[334749273,1723535457718,-500.0,0.00014003,2]
[334749274,1723535457728,-500.0,0.00014003,2]
[334749275,1723535457739,-500.0,0.00014003,2]
[334749276,1723535457748,-513.01345463,0.00014003,2]
[334749277,1723535457758,-500.0,0.00014003,2]
[334749278,1723535457768,-500.0,0.00014003,2]
[334749279,1723535457777,-500.0,0.00014003,2]
[334749280,1723535457786,-500.0,0.00014003,2]
[334749281,1723535457797,-500.0,0.00014003,2]
[334749282,1723535457807,-2199.74,0.00014003,2]
[334749283,1723535457818,-500.0,0.00014003,2]
[334749284,1723535457828,-500.0,0.00014003,2]
[334749285,1723535457837,-500.0,0.00014003,2]
[334749286,1723535457847,-520.3181079,0.00014003,2]
[334749287,1723535457856,-500.0,0.00014003,2]
[334749288,1723535457866,-500.0,0.00014003,2]
[334749289,1723535457875,-500.0,0.00014003,2]
[334749290,1723535457884,-500.0,0.00014003,2]
[334749291,1723535457894,-500.0,0.00014003,2]
[334749292,1723535457903,-500.0,0.00014003,2]
[334749293,1723535457912,-500.0,0.00014003,2]
[334749294,1723535457921,-500.0,0.00014003,2]
[334749295,1723535457931,-500.0,0.00014003,2]
[334749296,1723535457941,-500.0,0.00014003,2]
[334749297,1723535457951,-500.0,0.00014003,2]
[334749298,1723535457960,-500.0,0.00014003,2]
[334749299,1723535457969,-308.8585759,0.00014003,2]
[334749300,1723535457978,-500.0,0.00014003,2]
[334749301,1723535457988,-500.0,0.00014003,2]
[334749302,1723535457997,-1837.44,0.00014003,2]
[334749303,1723535458007,-909.74,0.00014003,2]
[334749304,1723535458016,-500.0,0.00014003,2]
[334749305,1723535458027,-500.0,0.00014003,2]
[334749306,1723535458037,-513.15465035,0.00014003,2]
[334749307,1723535458047,-500.0,0.00014003,2]
[334749308,1723535458058,-500.0,0.00014003,2]
[334749309,1723535458067,-16518.43,0.00014003,2]
[334749310,1723535458076,-500.0,0.00014003,2]
[334749311,1723535458085,-512.31781884,0.00014003,2]
[334749312,1723535458094,-495.70754114,0.00014003,2]
[334749313,1723535458104,-500.0,0.00014003,2]
[334749314,1723535458114,-500.0,0.00014003,2]
[334749315,1723535458125,-500.0,0.00014003,2]
[334749316,1723535458134,-500.0,0.00014003,2]
[334749317,1723535458143,-500.0,0.00014003,2]
[334749318,1723535458153,-532.24980276,0.00014003,2]
[334749319,1723535458162,-500.0,0.00014003,2]
[334749320,1723535458171,-500.0,0.00014003,2]
[334749321,1723535458180,-500.0,0.00014003,2]
[334749322,1723535458189,-500.0,0.00014003,2]
[334749323,1723535458199,-932.05,0.00014003,2]
[334749324,1723535458208,-500.0,0.00014003,2]
[334749325,1723535458217,-724.39,0.00014003,2]
[334749326,1723535458227,-404.40413536,0.00014003,2]
[334749327,1723535458236,-500.0,0.00014003,2]
[334749328,1723535458245,-500.0,0.00014003,2]
[334749329,1723535458255,-500.0,0.00014003,2]
[334749330,1723535458265,-500.0,0.00014003,2]
[334749331,1723535458274,-500.0,0.00014003,2]
[334749332,1723535458283,-500.0,0.00014003,2]
[334749333,1723535458292,-500.0,0.00014003,2]
[334749334,1723535458301,-500.0,0.00014003,2]
[334749335,1723535458311,-511.55199428,0.00014003,2]
[334749336,1723535458321,-500.0,0.00014003,2]
[334749337,1723535458331,-500.0,0.00014003,2]
[334749338,1723535458340,-587.6,0.00014003,2]
[334749339,1723535458350,-500.0,0.00014003,2]
[334749340,1723535458359,-500.0,0.00014003,2]
[334749341,1723535458368,-908.11,0.00014003,2]
[334749342,1723535458378,-799.22,0.00014003,2]
[334749343,1723535458387,-500.0,0.00014003,2]
[334749344,1723535458397,-500.0,0.00014003,2]
[334749345,1723535458406,-500.0,0.00014003,2]
[334749346,1723535458415,-1082.91,0.00014003,2]
[334749347,1723535458425,-500.0,0.00014003,2]
[334749348,1723535458434,-500.0,0.00014003,2]
[334749349,1723535458443,-500.0,0.00014003,2]
[334749350,1723535458452,-500.0,0.00014003,2]
[334749351,1723535458462,-500.0,0.00014003,2]
[334749352,1723535458471,-500.0,0.00014003,2]
[334749353,1723535458480,-500.0,0.00014003,2]
[334749354,1723535458491,-500.0,0.00014003,2]
[334749355,1723535458504,-15076.44,0.00014003,2]
[334749356,1723535458513,-500.0,0.00014003,2]
[334749357,1723535458523,-500.0,0.00014003,2]
[334749358,1723535458533,-500.0,0.00014003,2]
[334749359,1723535458544,-500.0,0.00014003,2]
[334749360,1723535458554,-500.0,0.00014003,2]
[334749361,1723535458563,-500.0,0.00014003,2]
[334749362,1723535458572,-223.6075593,0.00014003,2]
[334749363,1723535458583,-341.88911724,0.00014003,2]
[334749364,1723535458592,-500.0,0.00014003,2]
[334749365,1723535458602,-4670.57,0.00014003,2]
[334749366,1723535458614,-513.50553229,0.00014003,2]
[334749367,1723535458624,-500.0,0.00014003,2]
[334749368,1723535458634,-500.0,0.00014003,2]
[334749369,1723535458643,-500.0,0.00014003,2]
[334749370,1723535458653,-667.34,0.00014003,2]
[334749371,1723535458662,-571.04,0.00014003,2]
[334749372,1723535458671,-500.0,0.00014003,2]
[334749373,1723535458680,-189.79937322,0.00014003,2]
[334749374,1723535458690,-516.92013863,0.00014003,2]
[334749375,1723535458699,-1754.66,0.00014003,2]
[334749376,1723535458712,-500.0,0.00014003,2]
[334749377,1723535458721,-500.0,0.00014003,2]
[334749378,1723535458731,-500.0,0.00014003,2]
[334749379,1723535458742,-500.0,0.00014003,2]
[334749380,1723535458751,-500.0,0.00014003,2]
[334749381,1723535458762,-500.0,0.00014003,2]
[334749382,1723535458772,-523.17713358,0.00014003,2]
[334749383,1723535458781,-534.32,0.00014003,2]
[334749384,1723535458790,-500.0,0.00014003,2]
[334749385,1723535458800,-500.0,0.00014003,2]
[334749386,1723535458810,-500.0,0.00014003,2]
[334749387,1723535458984,-524.33,0.00014003,2]
[334749388,1723535459003,-500.0,0.00014003,2]
[334749389,1723535459013,-526.38392737,0.00014003,2]
[334749390,1723535459023,-500.0,0.00014003,2]
[334749391,1723535459033,-682.76,0.00014003,2]
[334749392,1723535459043,-520.79513104,0.00014003,2]
[334749393,1723535459052,-627.39555715,0.00014003,2]
[334749394,1723535459062,-522.68976071,0.00014003,2]
[334749395,1723535459071,-1600.18,0.00014003,2]
[334749396,1723535459080,-2553.18,0.00014003,2]
[334749397,1723535459089,-500.0,0.00014003,2]
[334749398,1723535459099,-530.71290054,0.00014003,2]
[334749399,1723535459109,-500.0,0.00014003,2]
[334749400,1723535459120,-500.0,0.00014003,2]
[334749401,1723535459129,-500.0,0.00014003,2]
[334749402,1723535459139,-500.0,0.00014003,2]
[334749403,1723535459149,-500.0,0.00014003,2]
[334749404,1723535459158,-500.0,0.00014003,2]
[334749405,1723535459168,-500.0,0.00014003,2]
[334749406,1723535459178,-500.0,0.00014003,2]
[334749407,1723535459188,-500.0,0.00014003,2]
[334749408,1723535459197,-549.82,0.00014003,2]
[334749409,1723535459207,-535.76743043,0.00014003,2]
[334749410,1723535459216,-705.6,0.00014003,2]
[334749411,1723535459226,-500.0,0.00014003,2]
[334749412,1723535459236,-519.98500406,0.00014003,2]
[334749413,1723535459247,-500.0,0.00014003,2]
[334749414,1723535459256,-500.0,0.00014003,2]
[334749415,1723535459265,-500.0,0.00014003,2]
[334749416,1723535459275,-500.0,0.00014003,2]
[334749417,1723535459284,-500.0,0.00014003,2]
[334749418,1723535459293,-500.0,0.00014003,2]
[334749419,1723535459302,-179.55170039,0.00014003,2]
[334749420,1723535459311,-514.68818117,0.00014003,2]
[334749421,1723535459320,-500.0,0.00014003,2]
[334749422,1723535459330,-500.0,0.00014003,2]
[334749423,1723535459339,-500.0,0.00014003,2]
[334749424,1723535459349,-500.0,0.00014003,2]
[334749425,1723535459358,-500.0,0.00014003,2]
[334749426,1723535459368,-500.0,0.00014003,2]
[334749427,1723535459378,-500.0,0.00014003,2]
[334749428,1723535459387,-500.0,0.00014003,2]
[334749429,1723535459396,-500.0,0.00014003,2]
[334749430,1723535459405,-500.0,0.00014003,2]
[334749431,1723535459415,-500.0,0.00014003,2]
[334749432,1723535459426,-500.0,0.00014003,2]
[334749433,1723535459436,-500.0,0.00014003,2]
[334749434,1723535459445,-500.0,0.00014003,2]
[334749435,1723535459454,-500.0,0.00014003,2]
[334749436,1723535459463,-500.0,0.00014003,2]
[334749437,1723535459472,-500.0,0.00014003,2]
[334749438,1723535459481,-500.0,0.00014003,2]
[334749439,1723535459493,-500.0,0.00014003,2]
[334749440,1723535459502,-500.0,0.00014003,2]
[334749441,1723535459512,-526.02435487,0.00014003,2]
[334749442,1723535459521,-500.0,0.00014003,2]
[334749443,1723535459532,-515.17871847,0.00014003,2]
[334749444,1723535459546,-500.0,0.00014003,2]
[334749445,1723535459555,-500.0,0.00014003,2]
[334749446,1723535459564,-500.0,0.00014003,2]
[334749447,1723535459572,-513.42626294,0.00014003,2]
[334749448,1723535459583,-500.0,0.00014003,2]
[334749449,1723535459592,-500.0,0.00014003,2]
[334749450,1723535459601,-317.21772532,0.00014003,2]
[334749451,1723535459611,-500.0,0.00014003,2]
[334749452,1723535459620,-500.0,0.00014003,2]
[334749453,1723535459629,-500.0,0.00014003,2]
[334749454,1723535459639,-500.0,0.00014003,2]
[334749455,1723535459648,-500.0,0.00014003,2]
[334749456,1723535459656,-500.0,0.00014003,2]
[334749457,1723535459666,-500.0,0.00014003,2]
[334749458,1723535459676,-500.0,0.00014003,2]
[334749459,1723535459689,-500.0,0.00014003,2]
[334749460,1723535459699,-500.0,0.00014003,2]
[334749461,1723535459708,-500.0,0.00014003,2]
[334749462,1723535459718,-500.0,0.00014003,2]
[334749463,1723535459727,-500.0,0.00014003,2]
[334749464,1723535459736,-500.0,0.00014003,2]
[334749465,1723535459746,-500.0,0.00014003,2]
[334749466,1723535459755,-500.0,0.00014003,2]
[334749467,1723535459764,-500.0,0.00014003,2]
[334749468,1723535459774,-523.1146172,0.00014003,2]
[334749469,1723535459784,-543.77828255,0.00014003,2]
[334749470,1723535459795,-500.0,0.00014003,2]
[334749471,1723535459804,-500.0,0.00014003,2]
[334749472,1723535459813,-500.0,0.00014003,2]
[334749473,1723535459824,-803.87,0.00014003,2]
[334749474,1723535459833,-500.0,0.00014003,2]
[334749475,1723535459842,-500.0,0.00014003,2]
[334749476,1723535459851,-500.0,0.00014003,2]
[334749477,1723535459860,-500.0,0.00014003,2]
[334749478,1723535459869,-511.10321367,0.00014003,2]
[334749479,1723535459878,-339.56442651,0.00014003,2]
[334749480,1723535459887,-500.0,0.00014003,2]
[334749481,1723535459896,-500.0,0.00014003,2]
[334749482,1723535459905,-521.35683767,0.00014003,2]
[334749483,1723535459915,-500.0,0.00014003,2]
[334749484,1723535459924,-391.43074622,0.00014035,2]
[334749485,1723535459933,-1292.16770937,0.0001406,2]
[334749486,1723535459942,-32597.673155,0.00014063,2]
[334749487,1723535459951,-96068.0388413,0.00014063,2]
[334749488,1723535459961,-500.0,0.00014068,2]
[334749489,1723535459970,-500.0,0.00014073,2]
[334749490,1723535459979,-337.66883333,0.00014073,2]
[334749491,1723535459988,-1863.44,0.00014073,2]
[334749492,1723535459999,-500.0,0.00014073,2]
[334749493,1723535460009,-505.18250254,0.00014073,2]
[334749494,1723535460018,-507.07331185,0.00014073,2]
[334749495,1723535460028,-500.0,0.00014073,2]
[334749496,1723535460038,-500.0,0.00014073,2]
[334749497,1723535460048,-504.75,0.00014073,2]
[334749498,1723535460058,-500.0,0.00014073,2]
[334749499,1723535460068,-506.77002253,0.00014073,2]
[334749500,1723535460078,-500.0,0.00014073,2]
[334749501,1723535460087,-500.0,0.00014073,2]
[334749502,1723535460097,-500.0,0.00014073,2]
[334749503,1723535460106,-500.0,0.00014073,2]
[334749504,1723535460115,-500.0,0.00014073,2]
[334749505,1723535460126,-309.33063878,0.00014073,2]
[334749506,1723535460136,-500.0,0.00014073,2]
[334749507,1723535460145,-150.0,0.00014073,2]
[334749508,1723535460155,-1155.62,0.00014073,2]
[334749509,1723535460164,-255.62126915,0.00014073,2]
[334749510,1723535460173,-500.0,0.00014073,2]
[334749511,1723535460182,-500.0,0.00014073,2]
[334749512,1723535460192,-714.2,0.00014073,2]
[334749513,1723535460201,-1241.0,0.00014073,2]
[334749514,1723535460210,-500.0,0.00014073,2]
[334749515,1723535460219,-500.0,0.00014073,2]
[334749516,1723535460228,-755.25,0.00014073,2]
[334749517,1723535460237,-791.16,0.00014073,2]
[334749518,1723535460248,-505.79030073,0.00014073,2]
[334749519,1723535460257,-500.0,0.00014073,2]
[334749520,1723535460266,-1099.51,0.00014073,2]
[334749521,1723535460275,-500.0,0.00014073,2]
[334749522,1723535460285,-500.0,0.00014073,2]
[334749523,1723535460294,-500.0,0.00014073,2]
[334749524,1723535460303,-500.0,0.00014073,2]
[334749525,1723535460312,-946.68,0.00014073,2]
[334749526,1723535460321,-500.0,0.00014073,2]
[334749527,1723535460330,-234.678356,0.00014073,2]
[334749528,1723535460339,-1359.34,0.00014073,2]
[334749529,1723535460349,-500.0,0.00014073,2]
[334749530,1723535460359,-500.0,0.00014073,2]
[334749531,1723535460368,-500.0,0.00014073,2]
[334749532,1723535460378,-1743.71,0.00014073,2]
[334749533,1723535460388,-1023.06,0.00014073,2]
[334749534,1723535460399,-500.0,0.00014073,2]
[334749535,1723535460408,-500.0,0.00014073,2]
[334749536,1723535460417,-778.62,0.00014073,2]
[334749537,1723535460426,-1760.09,0.00014073,2]
[334749538,1723535460436,-500.0,0.00014073,2]
[334749539,1723535460445,-500.0,0.00014073,2]
[334749540,1723535460455,-500.0,0.00014073,2]
[334749541,1723535460464,-500.0,0.00014073,2]
[334749542,1723535460474,-500.0,0.00014073,2]
[334749543,1723535460483,-1230.55,0.00014073,2]
[334749544,1723535460494,-537.47,0.00014073,2]
[334749545,1723535460503,-403.62749479,0.00014073,2]
[334749546,1723535460513,-1688.57,0.00014073,2]
[334749547,1723535460522,-1001.08,0.00014073,2]
[334749548,1723535460531,-828.014967,0.00014073,2]
[334749549,1723535460544,-435.949083,0.00014073,2]
[334749550,1723535460553,-500.0,0.00014073,2]
[334749551,1723535460562,-500.0,0.00014073,2]
[334749552,1723535460572,-28588.8833,0.00014073,2]
[334749553,1723535460584,-21831.704954,0.00014073,2]
[334749554,1723535460594,-500.0,0.00014073,2]
[334749555,1723535460603,-500.0,0.00014073,2]
[334749556,1723535460618,-500.0,0.00014073,2]
[334749557,1723535460627,-6177.95,0.00014073,2]
[334749558,1723535460639,-514.23080112,0.00014073,2]
[334749559,1723535460649,-4092.104095,0.00014073,2]
[334749560,1723535460658,-500.0,0.00014073,2]
[334749561,1723535460668,-500.0,0.00014073,2]
[334749562,1723535460678,-2922.39,0.00014073,2]
[334749563,1723535460688,-500.0,0.00014073,2]
[334749564,1723535460697,-500.0,0.00014073,2]
[334749565,1723535460706,-505.58456059,0.00014073,2]
[334749566,1723535460715,-1300.36,0.00014073,2]
[334749567,1723535460724,-500.0,0.00014073,2]
[334749568,1723535460733,-500.0,0.00014073,2]
[334749569,1723535460742,-609.65,0.00014073,2]
[334749570,1723535460751,-523.35,0.00014073,2]
[334749571,1723535460761,-1411.68,0.00014073,2]
[334749572,1723535460770,-500.0,0.00014073,2]
[334749573,1723535460779,-500.0,0.00014073,2]
[334749574,1723535460788,-506.02742999,0.00014073,2]
[334749575,1723535460797,-500.0,0.00014073,2]
[334749576,1723535460806,-504.17415267,0.00014073,2]
[334749577,1723535460815,-1209.11,0.00014073,2]
[334749578,1723535460824,-518.03,0.00014073,2]
[334749579,1723535460833,-1085.25,0.00014073,2]
[334749580,1723535460842,-500.0,0.00014073,2]
[334749581,1723535460851,-500.0,0.00014073,2]
[334749582,1723535460860,-991.7,0.00014073,2]
[334749583,1723535460869,-507.82,0.00014073,2]
[334749584,1723535460878,-500.0,0.00014073,2]
[334749585,1723535460887,-500.0,0.00014073,2]
[334749586,1723535460896,-500.0,0.00014073,2]
[334749587,1723535460905,-500.0,0.00014073,2]
[334749588,1723535460914,-500.0,0.00014073,2]
[334749589,1723535460923,-500.0,0.00014073,2]
[334749590,1723535460932,-500.0,0.00014073,2]
[334749591,1723535460941,-686.92,0.00014073,2]
[334749592,1723535460950,-500.0,0.00014073,2]
[334749593,1723535460960,-498.36617202,0.00014073,2]
[334749594,1723535460969,-2622.01,0.00014073,2]
[334749595,1723535460978,-500.0,0.00014073,2]
[334749596,1723535460987,-551.73,0.00014073,2]
[334749597,1723535460997,-500.0,0.00014073,2]
[334749598,1723535461006,-500.0,0.00014073,2]
[334749599,1723535461015,-500.0,0.00014073,2]
[334749600,1723535461024,-1670.97,0.00014073,2]
[334749601,1723535461033,-670.23,0.00014073,2]
[334749602,1723535461042,-500.0,0.00014073,2]
[334749603,1723535461051,-500.0,0.00014073,2]
[334749604,1723535461060,-3541.36,0.00014073,2]
[334749605,1723535461070,-500.0,0.00014073,2]
[334749606,1723535461079,-500.0,0.00014073,2]
[334749607,1723535461088,-500.0,0.00014073,2]
[334749608,1723535461097,-500.0,0.00014073,2]
[334749609,1723535461107,-500.0,0.00014073,2]
[334749610,1723535461116,-500.0,0.00014073,2]
[334749611,1723535461126,-500.0,0.00014073,2]
[334749612,1723535461136,-1085.98,0.00014073,2]
[334749613,1723535461145,-500.0,0.00014073,2]
[334749614,1723535461155,-500.0,0.00014073,2]
[334749615,1723535461164,-2167.9,0.00014073,2]
[334749616,1723535461174,-500.0,0.00014073,2]
[334749617,1723535461183,-500.0,0.00014073,2]